{"text_format":"1","workbook":"xlsx","n_sheets":1,"sheets":["Table 1"],"not_rendered":{"charts":0,"images":1,"macros":1,"external_links":0,"defined_names":0,"comments":0,"pivot_tables":0},"unopened":[],"bounds":{"document_bytes":16777216,"sheet_cells":100000,"rows_first":2000,"rows_last":500,"rows_between":2000,"halvings":0,"cell_chars":16384,"cell_head_chars":4096},"cells_cut":0,"cells_raw":0,"read":"whole","date_system":"1900"}

{"sheet":"Table 1","index":0,"n_rows":30,"n_cols":17,"rows_kept":30,"cut":false,"hidden":false,"merged":[[27,6,27,7],[28,6,28,7],[27,8,29,10],[18,8,18,9],[19,8,19,9],[14,8,14,9],[15,8,15,9],[16,8,16,9],[29,0,29,4],[6,6,6,8],[7,9,7,10],[28,1,28,4],[9,9,9,10],[8,9,8,10],[23,1,23,5],[23,6,23,8],[8,2,8,4],[9,2,9,4],[10,2,10,4],[11,2,11,4],[21,6,21,8],[22,1,22,5],[22,6,22,8],[17,8,17,9],[24,8,24,10],[25,8,25,10]]}
["HORRY COUNTY, SOUTH CAROLINA"]
["HOSPITALITY FEE/LOCAL ACCOMMODATIONS TAX"]
["Reporting Form"]
["(For Businesses Both Inside & Outside the City Limits)"]
[]
["www.horrycounty.org",null,"Return Type:",null,null,"Due  on the  20th of the month following reporting period end."]
[null,null,"This return reports Sales for:","Month",null,"Year"]
[null,null,null,null,null,null,"Return Due Date:"]
["Customer Number:",null,null,null,null,null,"Federal ID or SSN:"]
["Account Number:",null,null,null,null,null,"Retail License Number:"]
["Business Name:                                                                                                                                                                                                           Retail License No."]
["Business Location:"]
[]
["Computation of Hospitality Fee / Local Accommodations Tax amounts due:"]
["1.  Gross proceeds from Sale of Food/Beverages inside city limits",null,null,null,null,0,"x","1.5%","(.015) =   1. $",null,{"$f":"+F15*H15","v":0}]
["1A.Gross proceeds from Sale of Food/Beverages outside city limits",null,null,null,null,0,"x","2.5%","(.025) = 1A. $",null,{"$f":"+F16*H16","v":0}]
["2.  Gross proceeds from Rental of Transient Accommodations inside city limits",null,null,null,null,0,"x","1.5%","(.015) =   2. $",null,0]
["2A.Gross proceeds from Rental of Transient Accommodations outside city limits",null,null,null,null,0,"x","3%","(.03)   = 2A. $",null,0]
["3.  Gross proceeds from Paid Admissions and/or Amusements inside city limits",null,null,null,null,0,"x","1.5%","(.015) =   3. $",null,0]
["3A.Gross proceeds from Paid Admissions and/or Amusements outside city limits",null,null,null,null,0,"x","2.5%","(.025) = 3A. $",null,0]
["4.  Totals ",null,null,null,"(A) Gross proceeds = 4A. ",{"$f":"SUM(F15:F20)","v":0},null,null,null,"(B) Fees Due = 4B",{"$f":"SUM(K15:K20)","v":0},null,null,null,null,{"$f":"+K21*0.00666666","v":0}]
[5,"Penalty for Delinquent Hospitality Fee Payment (Based on return due date and date paid)",null,null,null,null,null,null,null,"5. $",{"$f":"+P26","v":0},null,null,{"$f":"IF((G29-J8)>0,G29-J8,0)","v":0},"Days"]
[null,"Please navigate to the following website to determine your current outstanding penalty(s):\nhttp://www.horrycounty.org/Departments/HospitalityFee.aspx",null,null,null,null,null,null,null,null,null,null,null,{"$f":"IF(N22<30,N22,0)","v":0},{"$f":"0.00333+0.00333","v":6.6600000000000001E-3}]
[6,"TOTAL FEES DUE",null,null,null,null,"(Line 4B + Line 5)",null,null,"6. $",{"$f":"+K21+K22","v":0},null,null,{"$f":"IF(N22>60,60,N22)","v":0},{"$f":"0.00333333+0.00333333","v":6.6666599999999996E-3},{"$f":"+N24*O24*K21","v":0}]
["This return covers the period through the last day of the month.",null,null,null,null,null,null,null,"Enclose check with return.",null,null,null,null,{"$f":"N22-N24","v":0},3.3333299999999998E-3,{"$f":"+N25*O25*K21","v":0}]
["Please contact your city for their proper reporting requirements.",null,null,null,null,null,null,null,"Please DO NOT staple.",null,null,null,null,null,null,{"$f":"SUM(P23:P25)","v":0},{"$f":"+P26/K21","v":{"$error":"#DIV/0!"}}]
["MAKE CHECK PAYABLE TO: HORRY COUNTY GOVERNMENT, PO BOX 1275, CONWAY, SC 29528"]
["Taxpayer's Signature                                                                                                                                           Phone Number                                       Date",null,null,null,null," Phone Number ","Date",null,"Penalties reflected above will be recalculated and an additional amount may be due if payment is postmaked or delivered in person after date used."]
[]
["This information represents a true and accurate statement."]